[Event "2026 European Womens Championship"]
[Site "Batumi, GE"]
[Date "2026.05.27"]
[Round "3"]
[White "Maltsevskaya, Aleksandra"]
[Black "Ivekovic, Tihana"]
[Result "1-0"]
[Board "31"]
[TimeControl "5400+30"]
[WhiteFideId "24174041"]
[BlackFideId "14517825"]
[WhiteElo "2390"]
[BlackElo "2119"]
[WhiteTitle "IM"]
[BlackTitle "WFM"]
[WhiteClock "0:38:54"]
[BlackClock "0:02:42"]
[Variant "Standard"]

1. e4 {[%clk 1:30:43]}  e5 {[%clk 1:30:54]} 2. Nf3 {[%clk 1:30:42]}  Nc6 {[%clk 1:31:10]} 3. d4 {[%clk 1:31:00]}  exd4 {[%clk 1:31:23]}
4. Bc4 {[%clk 1:31:24]}  Nf6 {[%clk 1:31:29]} 5. e5 {[%clk 1:31:46]}  d5 {[%clk 1:31:36]} 6. Bb5 {[%clk 1:32:03]}  Ne4 {[%clk 1:31:47]}
7. Nxd4 {[%clk 1:30:29]}  Bd7 {[%clk 1:31:49]} 8. Bxc6 {[%clk 1:29:20]}  bxc6 {[%clk 1:32:12]} 9. O-O {[%clk 1:29:10]}  Be7 {[%clk 1:32:02]}
10. f3 {[%clk 1:26:37]}  Nc5 {[%clk 1:31:59]} 11. f4 {[%clk 1:26:30]}  O-O {[%clk 1:31:53]} 12. Be3 {[%clk 1:25:47]}  Na4 {[%clk 1:31:14]}
13. b3 {[%clk 1:15:52]}  Nb6 {[%clk 1:29:47]} 14. f5 {[%clk 1:08:58]}  Bg5 {[%clk 1:25:14]} 15. Qd2 {[%clk 1:07:05]}  Bxe3+ {[%clk 1:00:22]}
16. Qxe3 {[%clk 1:07:27]}  Qh4 {[%clk 0:59:10]} 17. Nd2 {[%clk 1:01:39]}  Rfe8 {[%clk 0:39:16]} 18. Rae1 {[%clk 0:55:12]}  c5 {[%clk 0:26:31]}
19. N4f3 {[%clk 0:55:30]}  Qe7 {[%clk 0:26:55]} 20. f6 {[%clk 0:48:21]}  gxf6 {[%clk 0:21:27]} 21. Qh6 {[%clk 0:47:08]}  Qf8 {[%clk 0:21:43]}
22. Qh4 {[%clk 0:45:57]}  f5 {[%clk 0:15:58]} 23. Ng5 {[%clk 0:44:59]}  h6 {[%clk 0:16:15]} 24. Nh3 {[%clk 0:45:11]}  Be6 {[%clk 0:09:28]}
25. Re3 {[%clk 0:43:44]}  Nd7 {[%clk 0:09:43]} 26. Nf4 {[%clk 0:42:55]}  Kh7 {[%clk 0:09:30]} 27. Nh5 {[%clk 0:42:17]}  Qh8 {[%clk 0:08:55]}
28. Rh3 {[%clk 0:38:27]}  Qxe5 {[%clk 0:07:06]} 29. Nf3 {[%clk 0:38:30]}  Qe3+ {[%clk 0:03:22]} 30. Kh1 {[%clk 0:38:52]}  Rg8 {[%clk 0:02:42]}
31. Nf4 {[%clk 0:38:54]} 1-0

[Event "2026 European Womens Championship"]
[Site "Batumi, GE"]
[Date "2026.05.27"]
[Round "3"]
[White "Efroimski, Marsel"]
[Black "Donghvani, Nia"]
[Result "1-0"]
[Board "32"]
[TimeControl "5400+30"]
[WhiteFideId "2810964"]
[BlackFideId "13614649"]
[WhiteElo "2386"]
[BlackElo "2117"]
[WhiteTitle "IM"]
[BlackTitle "WFM"]
[WhiteClock "0:09:00"]
[BlackClock "0:01:31"]
[Variant "Standard"]

1. e4 {[%clk 1:28:53]}  c5 {[%clk 1:30:46]} 2. Nf3 {[%clk 1:29:19]}  e6 {[%clk 1:30:14]} 3. d4 {[%clk 1:29:38]}  cxd4 {[%clk 1:31:19]}
4. Nxd4 {[%clk 1:30:07]}  Nf6 {[%clk 1:31:16]} 5. Nc3 {[%clk 1:30:33]}  Nc6 {[%clk 1:31:30]} 6. Nxc6 {[%clk 1:30:53]}  bxc6 {[%clk 1:31:50]}
7. e5 {[%clk 1:31:19]}  Nd5 {[%clk 1:32:16]} 8. Ne4 {[%clk 1:31:45]}  Qc7 {[%clk 1:32:43]} 9. f4 {[%clk 1:32:07]}  Qb6 {[%clk 1:32:11]}
10. a3 {[%clk 1:32:29]}  Ne3 {[%clk 1:32:29]} 11. Qd3 {[%clk 1:32:53]}  Nxf1 {[%clk 1:32:40]} 12. Rxf1 {[%clk 1:33:19]}  Ba6 {[%clk 1:32:49]}
13. c4 {[%clk 1:33:45]}  f5 {[%clk 1:32:00]} 14. Nd6+ {[%clk 1:33:43]}  Bxd6 {[%clk 1:30:26]} 15. exd6 {[%clk 1:34:11]}  c5 {[%clk 1:19:55]}
16. Rf3 {[%clk 1:33:28]}  Rc8 {[%clk 0:55:51]} 17. b3 {[%clk 1:00:31]}  Rc6 {[%clk 0:46:03]} 18. Bb2 {[%clk 0:42:16]}  Rxd6 {[%clk 0:43:09]}
19. Qe2 {[%clk 0:37:27]}  Rg8 {[%clk 0:35:21]} 20. Re3 {[%clk 0:26:23]}  g6 {[%clk 0:24:44]} 21. Be5 {[%clk 0:26:32]}  Rc6 {[%clk 0:23:45]}
22. O-O-O {[%clk 0:25:17]}  Qa5 {[%clk 0:08:38]} 23. Kb2 {[%clk 0:23:52]}  Kd8 {[%clk 0:06:10]} 24. Red3 {[%clk 0:17:37]}  d5 {[%clk 0:02:46]}
25. cxd5 {[%clk 0:17:13]}  c4 {[%clk 0:00:58]} 26. dxc6+ {[%clk 0:15:43]}  cxd3 {[%clk 0:01:24]} 27. Bf6+ {[%clk 0:13:45]}  Kc7 {[%clk 0:01:54]}
28. Qxe6 {[%clk 0:14:06]}  Qc5 {[%clk 0:00:52]} 29. Be5+ {[%clk 0:08:44]}  Kb6 {[%clk 0:01:10]} 30. Rc1 {[%clk 0:08:00]}  Qf2+ {[%clk 0:01:37]}
31. Ka1 {[%clk 0:08:01]}  d2 {[%clk 0:00:57]} 32. c7+ {[%clk 0:08:20]}  Ka5 {[%clk 0:00:50]} 33. b4+ {[%clk 0:08:20]}  Ka4 {[%clk 0:01:09]}
34. Qxa6+ {[%clk 0:08:38]}  Kb3 {[%clk 0:01:31]} 35. Rc3# {[%clk 0:09:00]} 1-0

[Event "2026 European Womens Championship"]
[Site "Batumi, GE"]
[Date "2026.05.27"]
[Round "3"]
[White "Berke, Ana"]
[Black "Kulon, Klaudia"]
[Result "0-1"]
[Board "33"]
[TimeControl "5400+30"]
[WhiteFideId "14510359"]
[BlackFideId "1131044"]
[WhiteElo "2164"]
[BlackElo "2377"]
[WhiteTitle "WIM"]
[BlackTitle "IM"]
[WhiteClock "0:02:49"]
[BlackClock "0:02:13"]
[Variant "Standard"]

1. e4 {[%clk 1:30:43]}  e6 {[%clk 1:29:23]} 2. d4 {[%clk 1:30:13]}  d5 {[%clk 1:29:28]} 3. Nd2 {[%clk 1:30:37]}  c5 {[%clk 1:29:41]}
4. Ngf3 {[%clk 1:31:00]}  cxd4 {[%clk 1:29:53]} 5. Nxd4 {[%clk 1:31:13]}  Nc6 {[%clk 1:30:18]} 6. Bb5 {[%clk 1:31:24]}  Bd7 {[%clk 1:30:41]}
7. Nxc6 {[%clk 1:31:40]}  bxc6 {[%clk 1:31:07]} 8. Bd3 {[%clk 1:32:03]}  Bd6 {[%clk 1:31:17]} 9. Qe2 {[%clk 1:31:50]}  e5 {[%clk 1:31:10]}
10. O-O {[%clk 1:29:41]}  Qe7 {[%clk 1:30:30]} 11. c4 {[%clk 1:24:17]}  d4 {[%clk 1:30:38]} 12. f4 {[%clk 1:21:55]}  Nf6 {[%clk 1:28:30]}
13. fxe5 {[%clk 1:11:20]}  Bxe5 {[%clk 1:27:39]} 14. Nf3 {[%clk 1:10:11]}  Bg4 {[%clk 1:27:45]} 15. Qf2 {[%clk 1:07:09]}  Bxf3 {[%clk 1:26:48]}
16. gxf3 {[%clk 1:05:55]}  Bc7 {[%clk 1:19:37]} 17. e5 {[%clk 1:02:04]}  Nd7 {[%clk 1:19:05]} 18. f4 {[%clk 1:00:23]}  Nc5 {[%clk 1:14:15]}
19. Bf5 {[%clk 0:58:48]}  g6 {[%clk 1:11:37]} 20. Bh3 {[%clk 0:54:46]}  O-O {[%clk 1:08:51]} 21. Qf3 {[%clk 0:49:45]}  f6 {[%clk 0:45:53]}
22. b4 {[%clk 0:43:51]}  Na6 {[%clk 0:40:11]} 23. exf6 {[%clk 0:35:42]}  Rxf6 {[%clk 0:38:53]} 24. f5 {[%clk 0:28:08]}  gxf5 {[%clk 0:38:15]}
25. Bb2 {[%clk 0:24:53]}  Nxb4 {[%clk 0:35:00]} 26. Bxf5 {[%clk 0:22:10]}  Qd6 {[%clk 0:29:13]} 27. Rf2 {[%clk 0:19:02]}  Kh8 {[%clk 0:27:40]}
28. Kh1 {[%clk 0:11:44]}  Raf8 {[%clk 0:25:48]} 29. Qg4 {[%clk 0:10:55]}  c5 {[%clk 0:20:41]} 30. Rg2 {[%clk 0:10:01]}  Qe7 {[%clk 0:19:34]}
31. Rag1 {[%clk 0:08:24]}  Qf7 {[%clk 0:19:42]} 32. Bb1 {[%clk 0:05:06]}  Nc6 {[%clk 0:16:07]} 33. Qh3 {[%clk 0:04:56]}  Rf1 {[%clk 0:14:40]}
34. Be4 {[%clk 0:03:31]}  Ne5 {[%clk 0:11:56]} 35. Bd5 {[%clk 0:03:05]}  Rxg1+ {[%clk 0:11:00]} 36. Rxg1 {[%clk 0:03:27]}  Qf6 {[%clk 0:09:37]}
37. Bc1 {[%clk 0:03:13]}  Ng6 {[%clk 0:08:45]} 38. Be4 {[%clk 0:02:03]}  Rg8 {[%clk 0:03:07]} 39. Bd5 {[%clk 0:01:22]}  Re8 {[%clk 0:02:47]}
40. Bg5 {[%clk 0:00:46]}  Qe5 {[%clk 0:02:03]} 41. Qg2 {[%clk 0:28:16]}  Rf8 {[%clk 0:26:26]} 42. Be4 {[%clk 0:14:24]}  Rf7 {[%clk 0:22:14]}
43. Bh6 {[%clk 0:12:15]}  Re7 {[%clk 0:19:20]} 44. Bd5 {[%clk 0:10:42]}  d3 {[%clk 0:10:55]} 45. Rf1 {[%clk 0:10:04]}  Re8 {[%clk 0:09:23]}
46. Bg5 {[%clk 0:09:52]}  Bd8 {[%clk 0:08:49]} 47. Bh6 {[%clk 0:06:10]}  Qe2 {[%clk 0:05:21]} 48. Bc1 {[%clk 0:03:09]}  Qxg2+ {[%clk 0:02:25]}
49. Kxg2 {[%clk 0:03:16]}  h5 {[%clk 0:01:32]} 50. Bb2+ {[%clk 0:02:39]}  Kh7 {[%clk 0:02:01]} 51. Rf7+ {[%clk 0:01:32]}  Kh6 {[%clk 0:02:30]}
52. Bg7+ {[%clk 0:00:53]}  Kg5 {[%clk 0:02:59]} 53. Bf3 {[%clk 0:00:39]}  Nh4+ {[%clk 0:02:36]} 54. Kf2 {[%clk 0:01:04]}  Kg6 {[%clk 0:02:40]}
55. Rd7 {[%clk 0:01:24]}  Ba5 {[%clk 0:01:39]} 56. Bd1 {[%clk 0:01:48]}  d2 {[%clk 0:00:59]} 57. Bc2+ {[%clk 0:00:51]}  Nf5 {[%clk 0:00:44]}
58. Rxa7 {[%clk 0:01:13]}  d1=Q {[%clk 0:00:40]} 59. Bxd1 {[%clk 0:01:35]}  Be1+ {[%clk 0:01:07]} 60. Kf3 {[%clk 0:01:01]}  Nxg7 {[%clk 0:01:32]}
61. Bc2+ {[%clk 0:01:19]}  Kf6 {[%clk 0:01:48]} 62. Be4 {[%clk 0:01:20]}  Ne6 {[%clk 0:01:56]} 63. Bd5 {[%clk 0:01:35]}  Ng5+ {[%clk 0:01:24]}
64. Kf4 {[%clk 0:01:49]}  Bd2+ {[%clk 0:01:48]} 65. Kg3 {[%clk 0:02:12]}  Kf5 {[%clk 0:01:20]} 66. a4 {[%clk 0:02:33]}  h4+ {[%clk 0:01:21]}
67. Kf2 {[%clk 0:02:23]}  Nh3+ {[%clk 0:01:16]} 68. Kf3 {[%clk 0:02:04]}  Re3+ {[%clk 0:01:26]} 69. Kg2 {[%clk 0:02:31]}  Nf4+ {[%clk 0:01:38]}
70. Kf2 {[%clk 0:02:54]}  Nd3+ {[%clk 0:01:48]} 71. Kg2 {[%clk 0:02:49]}  h3+ {[%clk 0:02:13]} 0-1

[Event "2026 European Womens Championship"]
[Site "Batumi, GE"]
[Date "2026.05.27"]
[Round "3"]
[White "Sivanandan, Bodhana"]
[Black "Huseynova, Lala"]
[Result "0-1"]
[Board "34"]
[TimeControl "5400+30"]
[WhiteFideId "497592"]
[BlackFideId "13431781"]
[WhiteElo "2374"]
[BlackElo "2149"]
[WhiteTitle "FM"]
[BlackTitle "WFM"]
[WhiteClock "0:08:24"]
[BlackClock "0:09:46"]
[Variant "Standard"]

1. e4 {[%clk 1:27:08]}  c5 {[%clk 1:30:43]} 2. Nf3 {[%clk 1:27:19]}  d6 {[%clk 1:31:04]} 3. Bb5+ {[%clk 1:27:28]}  Bd7 {[%clk 1:31:11]}
4. Bxd7+ {[%clk 1:27:36]}  Qxd7 {[%clk 1:31:32]} 5. c4 {[%clk 1:27:45]}  Nf6 {[%clk 1:31:48]} 6. Nc3 {[%clk 1:27:45]}  g6 {[%clk 1:31:56]}
7. d4 {[%clk 1:27:37]}  cxd4 {[%clk 1:32:15]} 8. Nxd4 {[%clk 1:27:43]}  Bg7 {[%clk 1:32:30]} 9. f3 {[%clk 1:27:36]}  Qc7 {[%clk 1:31:36]}
10. b3 {[%clk 1:25:34]}  Qa5 {[%clk 1:31:11]} 11. Bb2 {[%clk 1:22:01]}  Nc6 {[%clk 1:25:47]} 12. Nxc6 {[%clk 1:18:33]}  bxc6 {[%clk 1:26:09]}
13. Qd2 {[%clk 1:18:08]}  O-O {[%clk 1:20:21]} 14. O-O {[%clk 1:16:41]}  Rfd8 {[%clk 1:14:21]} 15. Rfd1 {[%clk 1:12:09]}  Rac8 {[%clk 0:58:32]}
16. Na4 {[%clk 1:09:25]}  Qh5 {[%clk 0:52:53]} 17. Qf2 {[%clk 1:05:34]}  d5 {[%clk 0:47:58]} 18. cxd5 {[%clk 0:47:29]}  cxd5 {[%clk 0:48:04]}
19. e5 {[%clk 0:46:19]}  Nd7 {[%clk 0:43:32]} 20. f4 {[%clk 0:44:26]}  e6 {[%clk 0:41:11]} 21. Rac1 {[%clk 0:39:29]}  g5 {[%clk 0:39:23]}
22. f5 {[%clk 0:28:42]}  Nxe5 {[%clk 0:34:41]} 23. fxe6 {[%clk 0:24:34]}  fxe6 {[%clk 0:32:55]} 24. Qxa7 {[%clk 0:21:17]}  Rc2 {[%clk 0:19:49]}
25. Qe3 {[%clk 0:16:28]}  d4 {[%clk 0:15:24]} 26. Qg3 {[%clk 0:14:11]}  d3 {[%clk 0:14:07]} 27. Rf1 {[%clk 0:12:25]}  d2 {[%clk 0:11:52]}
28. Rxc2 {[%clk 0:08:03]}  d1=Q {[%clk 0:11:58]} 29. Rc1 {[%clk 0:06:29]}  Qd6 {[%clk 0:07:01]} 30. Rc5 {[%clk 0:05:21]}  g4 {[%clk 0:06:38]}
31. Re1 {[%clk 0:04:30]}  Nf3+ {[%clk 0:05:08]} 32. gxf3 {[%clk 0:04:13]}  Qxg3+ {[%clk 0:04:32]} 33. hxg3 {[%clk 0:04:35]}  Qh3 {[%clk 0:04:05]}
34. Rc2 {[%clk 0:04:07]}  Qxg3+ {[%clk 0:04:14]} 35. Kf1 {[%clk 0:04:27]}  Rf8 {[%clk 0:03:53]} 36. Re3 {[%clk 0:03:28]}  Rxf3+ {[%clk 0:03:57]}
37. Rxf3 {[%clk 0:03:50]}  Qxf3+ {[%clk 0:04:25]} 38. Rf2 {[%clk 0:04:05]}  Qh1+ {[%clk 0:04:44]} 39. Ke2 {[%clk 0:04:26]}  g3 {[%clk 0:04:59]}
40. Rf3 {[%clk 0:04:32]}  Qg2+ {[%clk 0:04:57]} 41. Ke3 {[%clk 0:04:52]}  Bh6+ {[%clk 0:05:20]} 42. Ke4 {[%clk 0:05:10]}  Qe2+ {[%clk 0:05:47]}
43. Kd4 {[%clk 0:05:30]}  Qxf3 {[%clk 0:06:13]} 44. Kc5 {[%clk 0:05:50]}  g2 {[%clk 0:06:39]} 45. Bd4 {[%clk 0:06:11]}  Be3 {[%clk 0:07:05]}
46. Bxe3 {[%clk 0:06:31]}  Qxe3+ {[%clk 0:07:35]} 47. Kb5 {[%clk 0:06:45]}  g1=Q {[%clk 0:08:00]} 48. Ka6 {[%clk 0:06:57]}  Qd3+ {[%clk 0:08:19]}
49. Ka5 {[%clk 0:07:19]}  Qe1+ {[%clk 0:08:39]} 50. b4 {[%clk 0:07:39]}  Qa3 {[%clk 0:08:53]} 51. Kb5 {[%clk 0:08:03]}  Qexb4+ {[%clk 0:09:19]}
52. Ka6 {[%clk 0:08:24]}  Qaxa4# {[%clk 0:09:46]} 0-1

[Event "2026 European Womens Championship"]
[Site "Batumi, GE"]
[Date "2026.05.27"]
[Round "3"]
[White "Mamedjarova, Zeinab"]
[Black "Atalik, Ekaterina"]
[Result "0-1"]
[Board "35"]
[TimeControl "5400+30"]
[WhiteFideId "13401521"]
[BlackFideId "4130189"]
[WhiteElo "2137"]
[BlackElo "2372"]
[WhiteTitle "WGM"]
[BlackTitle "IM"]
[WhiteClock "0:00:42"]
[BlackClock "0:04:35"]
[Variant "Standard"]

1. c4 {[%clk 1:30:53]}  e5 {[%clk 1:30:02]} 2. Nc3 {[%clk 1:31:01]}  Nf6 {[%clk 1:29:31]} 3. Nf3 {[%clk 1:31:03]}  Nc6 {[%clk 1:29:40]}
4. g3 {[%clk 1:31:02]}  d5 {[%clk 1:27:53]} 5. cxd5 {[%clk 1:31:25]}  Nxd5 {[%clk 1:28:20]} 6. Bg2 {[%clk 1:31:49]}  Nb6 {[%clk 1:27:43]}
7. O-O {[%clk 1:31:59]}  Be7 {[%clk 1:27:48]} 8. a3 {[%clk 1:32:14]}  O-O {[%clk 1:27:27]} 9. b4 {[%clk 1:31:55]}  Be6 {[%clk 1:26:14]}
10. d3 {[%clk 1:30:25]}  f6 {[%clk 1:23:04]} 11. Qc2 {[%clk 1:25:27]}  Re8 {[%clk 0:59:14]} 12. Bb2 {[%clk 1:23:57]}  Qd7 {[%clk 0:51:56]}
13. Rfd1 {[%clk 1:18:09]}  a5 {[%clk 0:42:11]} 14. b5 {[%clk 1:08:53]}  Nd4 {[%clk 0:42:31]} 15. Nxd4 {[%clk 1:09:10]}  exd4 {[%clk 0:42:51]}
16. Ne4 {[%clk 1:06:40]}  Rad8 {[%clk 0:39:57]} 17. a4 {[%clk 1:05:07]}  Nd5 {[%clk 0:29:47]} 18. Rdc1 {[%clk 0:57:22]}  b6 {[%clk 0:27:50]}
19. Qc6 {[%clk 0:41:25]}  f5 {[%clk 0:25:56]} 20. Qxd7 {[%clk 0:28:54]}  Rxd7 {[%clk 0:26:19]} 21. Rc6 {[%clk 0:27:16]}  Kf7 {[%clk 0:22:02]}
22. Nd2 {[%clk 0:22:47]}  Bf6 {[%clk 0:21:53]} 23. Rac1 {[%clk 0:17:22]}  Ree7 {[%clk 0:19:16]} 24. Ba3 {[%clk 0:10:40]}  Nb4 {[%clk 0:19:20]}
25. Bxb4 {[%clk 0:07:58]}  axb4 {[%clk 0:19:45]} 26. Rb1 {[%clk 0:05:06]}  b3 {[%clk 0:16:36]} 27. f4 {[%clk 0:04:22]}  g5 {[%clk 0:16:06]}
28. Kf1 {[%clk 0:03:22]}  gxf4 {[%clk 0:13:33]} 29. gxf4 {[%clk 0:03:43]}  Bg7 {[%clk 0:13:48]} 30. Nxb3 {[%clk 0:01:50]}  Bxb3 {[%clk 0:09:37]}
31. Rxb3 {[%clk 0:02:06]}  Re6 {[%clk 0:09:55]} 32. Rxe6 {[%clk 0:01:08]}  Kxe6 {[%clk 0:10:21]} 33. Rb1 {[%clk 0:00:38]}  Bh6 {[%clk 0:10:29]}
34. Bc6 {[%clk 0:00:55]}  Rg7 {[%clk 0:10:18]} 35. Kf2 {[%clk 0:00:42]}  Bxf4 {[%clk 0:10:39]} 36. Rh1 {[%clk 0:00:45]}  h5 {[%clk 0:09:53]}
37. Bg2 {[%clk 0:01:00]}  Be3+ {[%clk 0:09:02]} 38. Kf3 {[%clk 0:00:56]}  h4 {[%clk 0:06:06]} 39. Bh3 {[%clk 0:00:53]}  Ke5 {[%clk 0:06:15]}
40. Ra1 {[%clk 0:00:45]}  Bd2 {[%clk 0:04:39]} 41. Rd1 {[%clk 0:00:46]}  Bf4 {[%clk 0:04:32]} 42. Rh1 {[%clk 0:28:35]}  Rg8 {[%clk 0:33:03]}
43. Bg2 {[%clk 0:10:29]}  Ra8 {[%clk 0:28:48]} 44. Ra1 {[%clk 0:10:50]}  Bxh2 {[%clk 0:27:27]} 45. Rc1 {[%clk 0:09:02]}  Rg8 {[%clk 0:21:56]}
46. Rh1 {[%clk 0:04:13]}  Bg3 {[%clk 0:21:52]} 47. e3 {[%clk 0:04:05]}  Rd8 {[%clk 0:12:00]} 48. Ra1 {[%clk 0:02:05]}  dxe3 {[%clk 0:14:54]}
49. Kxe3 {[%clk 0:02:18]}  Bf4+ {[%clk 0:14:14]} 50. Ke2 {[%clk 0:02:40]}  Kd4 {[%clk 0:13:35]} 51. Bc6 {[%clk 0:02:43]}  h3 {[%clk 0:08:07]}
52. a5 {[%clk 0:03:01]}  bxa5 {[%clk 0:08:18]} 53. Ra4+ {[%clk 0:03:21]}  Ke5 {[%clk 0:08:45]} 54. Rxa5 {[%clk 0:03:42]}  Kf6 {[%clk 0:08:38]}
55. Ra8 {[%clk 0:03:35]}  Rd6 {[%clk 0:08:03]} 56. Rf8+ {[%clk 0:03:23]}  Kg6 {[%clk 0:07:05]} 57. Rg8+ {[%clk 0:03:31]}  Kh7 {[%clk 0:05:39]}
58. Rg1 {[%clk 0:03:40]}  h2 {[%clk 0:05:27]} 59. Rb1 {[%clk 0:01:55]}  Kg6 {[%clk 0:05:12]} 60. Rf1 {[%clk 0:00:35]}  Kg5 {[%clk 0:05:34]}
61. Rb1 {[%clk 0:00:57]}  Kg4 {[%clk 0:04:59]} 62. Bh1 {[%clk 0:00:51]}  Re6+ {[%clk 0:04:54]} 63. Kf2 {[%clk 0:01:10]}  Bg3+ {[%clk 0:05:15]}
64. Kf1 {[%clk 0:01:15]}  f4 {[%clk 0:04:50]} 65. d4 {[%clk 0:00:37]}  f3 {[%clk 0:04:39]} 66. d5 {[%clk 0:00:59]}  Re8 {[%clk 0:04:34]}
67. Rb4+ {[%clk 0:00:57]}  Kg5 {[%clk 0:04:23]} 68. Rb1 {[%clk 0:01:15]}  f2 {[%clk 0:04:17]} 69. Kg2 {[%clk 0:00:42]}  Re1 {[%clk 0:04:35]}
70. Rc1 {[%clk 0:00:18]} 0-1

[Event "2026 European Womens Championship"]
[Site "Batumi, GE"]
[Date "2026.05.27"]
[Round "3"]
[White "Mgeladze, Kesaria"]
[Black "Bulmaga, Irina"]
[Result "0-1"]
[Board "36"]
[TimeControl "5400+30"]
[WhiteFideId "13621130"]
[BlackFideId "13903063"]
[WhiteElo "2147"]
[BlackElo "2361"]
[WhiteTitle "WIM"]
[BlackTitle "IM"]
[WhiteClock "0:27:26"]
[BlackClock "0:41:21"]
[Variant "Standard"]

1. e4 {[%clk 1:30:57]}  e5 {[%clk 1:30:54]} 2. Nf3 {[%clk 1:31:23]}  Nc6 {[%clk 1:31:17]} 3. Bb5 {[%clk 1:31:46]}  Nf6 {[%clk 1:31:41]}
4. d3 {[%clk 1:32:05]}  Bc5 {[%clk 1:32:00]} 5. Bxc6 {[%clk 1:32:02]}  dxc6 {[%clk 1:32:22]} 6. O-O {[%clk 1:32:05]}  Nd7 {[%clk 1:32:18]}
7. c3 {[%clk 1:31:58]}  h6 {[%clk 1:32:38]} 8. d4 {[%clk 1:30:47]}  Bd6 {[%clk 1:33:01]} 9. dxe5 {[%clk 1:21:27]}  Nxe5 {[%clk 1:33:14]}
10. Nxe5 {[%clk 1:20:34]}  Bxe5 {[%clk 1:33:40]} 11. Qxd8+ {[%clk 1:20:25]}  Kxd8 {[%clk 1:34:07]} 12. f4 {[%clk 1:15:51]}  Bd6 {[%clk 1:33:26]}
13. Be3 {[%clk 1:12:28]}  f6 {[%clk 1:18:33]} 14. Nd2 {[%clk 1:08:54]}  Re8 {[%clk 1:18:44]} 15. Rad1 {[%clk 0:44:20]}  Bg4 {[%clk 1:11:30]}
16. Rde1 {[%clk 0:43:46]}  Bd7 {[%clk 1:06:06]} 17. b4 {[%clk 0:24:00]}  a5 {[%clk 1:03:09]} 18. a3 {[%clk 0:23:32]}  axb4 {[%clk 0:52:27]}
19. axb4 {[%clk 0:22:53]}  b6 {[%clk 0:43:46]} 20. Nc4 {[%clk 0:21:32]}  Bf8 {[%clk 0:43:15]} 21. e5 {[%clk 0:15:22]}  c5 {[%clk 0:36:24]}
22. Rd1 {[%clk 0:04:44]}  Kc8 {[%clk 0:33:49]} 23. Ra1 {[%clk 0:02:29]}  Rxa1 {[%clk 0:32:19]} 24. Rxa1 {[%clk 0:02:55]}  Be6 {[%clk 0:29:17]}
25. Nd2 {[%clk 0:02:00]}  cxb4 {[%clk 0:29:31]} 26. cxb4 {[%clk 0:02:20]}  Bxb4 {[%clk 0:29:40]} 27. exf6 {[%clk 0:02:20]}  gxf6 {[%clk 0:29:41]}
28. Ne4 {[%clk 0:02:10]}  Kb7 {[%clk 0:16:38]} 29. Nxf6 {[%clk 0:01:33]}  Bc3 {[%clk 0:17:06]} 30. Nxe8 {[%clk 0:01:42]}  Bxa1 {[%clk 0:17:33]}
31. f5 {[%clk 0:01:43]}  Bd7 {[%clk 0:17:53]} 32. Nxc7 {[%clk 0:01:27]}  Kxc7 {[%clk 0:18:15]} 33. Bxh6 {[%clk 0:01:54]}  Bxf5 {[%clk 0:15:37]}
34. Bd2 {[%clk 0:01:27]}  Kc6 {[%clk 0:11:18]} 35. Kf2 {[%clk 0:01:35]}  Kc5 {[%clk 0:11:35]} 36. Kf3 {[%clk 0:01:39]}  b5 {[%clk 0:11:32]}
37. g4 {[%clk 0:02:04]}  Bd7 {[%clk 0:11:33]} 38. h4 {[%clk 0:01:27]}  b4 {[%clk 0:12:01]} 39. Kf4 {[%clk 0:00:40]}  b3 {[%clk 0:12:14]}
40. Bc1 {[%clk 0:01:06]}  b2 {[%clk 0:11:05]} 41. Bxb2 {[%clk 0:01:31]}  Bxb2 {[%clk 0:11:31]} 42. g5 {[%clk 0:27:21]}  Kd6 {[%clk 0:41:30]}
43. Ke4 {[%clk 0:27:20]}  Ke6 {[%clk 0:40:56]} 44. h5 {[%clk 0:27:34]}  Bc1 {[%clk 0:41:09]} 45. g6 {[%clk 0:27:59]}  Kf6 {[%clk 0:41:21]}
46. Kd4 {[%clk 0:27:26]} 0-1